[Event "Late-Titled-Tuesday-Blitz-February-13-2024"]
[Site "Chess.com"]
[Date "2024.02.13"]
[Round "7"]
[White "PepeCuenca"]
[Black "Cambek64"]
[Result "0-1"]
[WhiteElo "2661"]
[BlackElo "2520"]
[TimeControl "180+1"]
[EndTime "15:18:45 PST"]
[Termination "Cambek64 won on time"]

1. c4 {[%clk 0:03:00.9]} 1... c6 {[%clk 0:02:53]} 2. d4 {[%clk 0:03:00.4]} 2...
d5 {[%clk 0:02:53.6]} 3. Nf3 {[%clk 0:03:01.3]} 3... Nf6 {[%clk 0:02:53.1]} 4.
e3 {[%clk 0:03:01.6]} 4... a6 {[%clk 0:02:49.3]} 5. Nbd2 {[%clk 0:02:59.1]} 5...
b5 {[%clk 0:02:48.1]} 6. b3 {[%clk 0:02:59.3]} 6... Bg4 {[%clk 0:02:45.1]} 7.
Bb2 {[%clk 0:02:54.9]} 7... e6 {[%clk 0:02:45.4]} 8. Bd3 {[%clk 0:02:54.3]} 8...
Bd6 {[%clk 0:02:45.6]} 9. h3 {[%clk 0:02:53.5]} 9... Bh5 {[%clk 0:02:43.1]} 10.
Qc2 {[%clk 0:02:53.5]} 10... Nbd7 {[%clk 0:02:42]} 11. Ne5 {[%clk 0:02:45.5]}
11... Rc8 {[%clk 0:02:37.8]} 12. c5 {[%clk 0:02:42.5]} 12... Be7 {[%clk
0:02:33.4]} 13. f4 {[%clk 0:02:37.4]} 13... Bg6 {[%clk 0:02:29.7]} 14. a4 {[%clk
0:02:29.9]} 14... Nxe5 {[%clk 0:02:24.4]} 15. fxe5 {[%clk 0:02:18.9]} 15... Bxd3
{[%clk 0:02:13.7]} 16. Qxd3 {[%clk 0:02:18.2]} 16... Nd7 {[%clk 0:02:14.4]} 17.
O-O {[%clk 0:02:09.8]} 17... f6 {[%clk 0:02:08]} 18. exf6 {[%clk 0:01:53.7]}
18... Bxf6 {[%clk 0:02:05.4]} 19. Bc3 {[%clk 0:01:33.3]} 19... O-O {[%clk
0:02:01.3]} 20. e4 {[%clk 0:01:25.4]} 20... Bg5 {[%clk 0:01:44.1]} 21. Nf3
{[%clk 0:01:18.2]} 21... Bf4 {[%clk 0:01:41.1]} 22. e5 {[%clk 0:01:15.6]} 22...
Qe7 {[%clk 0:01:37]} 23. axb5 {[%clk 0:01:09.2]} 23... axb5 {[%clk 0:01:36.7]}
24. Ra6 {[%clk 0:01:01.5]} 24... Rf7 {[%clk 0:01:16.2]} 25. Bd2 {[%clk
0:00:48.2]} 25... Qf8 {[%clk 0:01:03.7]} 26. Raa1 {[%clk 0:00:36.9]} 26... Qe7
{[%clk 0:00:51.7]} 27. Bxf4 {[%clk 0:00:30.3]} 27... Rxf4 {[%clk 0:00:49.7]} 28.
Nd2 {[%clk 0:00:31]} 28... Rxf1+ {[%clk 0:00:47.3]} 29. Nxf1 {[%clk 0:00:25.7]}
29... Nf8 {[%clk 0:00:45.6]} 30. Qe3 {[%clk 0:00:19.8]} 30... Qb7 {[%clk
0:00:42.4]} 31. Nd2 {[%clk 0:00:17]} 31... Ra8 {[%clk 0:00:42.9]} 32. Qe1 {[%clk
0:00:16.4]} 32... Ra7 {[%clk 0:00:41.6]} 33. b4 {[%clk 0:00:07.1]} 33... Qa8
{[%clk 0:00:41]} 34. Rxa7 {[%clk 0:00:07.3]} 34... Qxa7 {[%clk 0:00:40.7]} 35.
Nf3 {[%clk 0:00:07.9]} 35... Qa3 {[%clk 0:00:40.2]} 36. Qd2 {[%clk 0:00:07.4]}
36... h6 {[%clk 0:00:39.2]} 37. Kh2 {[%clk 0:00:07.5]} 37... Ng6 {[%clk
0:00:35.1]} 38. h4 {[%clk 0:00:07.9]} 38... Ne7 {[%clk 0:00:35]} 39. Qe1 {[%clk
0:00:03.8]} 39... Nf5 {[%clk 0:00:31.6]} 40. Qd2 {[%clk 0:00:04]} 40... Qa1
{[%clk 0:00:23.1]} 41. Qf2 {[%clk 0:00:02.4]} 41... Qc1 {[%clk 0:00:21.7]} 42.
g4 {[%clk 0:00:02.4]} 42... Qf4+ {[%clk 0:00:21.5]} 43. Kh3 {[%clk 0:00:03]}
43... Ne3 {[%clk 0:00:20.3]} 44. Qg3 {[%clk 0:00:02.6]} 44... Qe4 {[%clk
0:00:19.8]} 45. h5 {[%clk 0:00:03.1]} 45... Nf1 {[%clk 0:00:17.9]} 46. Qg2
{[%clk 0:00:03]} 46... Ne3 {[%clk 0:00:16.4]} 47. Qg3 {[%clk 0:00:03.5]} 47...
Qd3 {[%clk 0:00:16.1]} 48. g5 {[%clk 0:00:02.6]} 48... Qf5+ {[%clk 0:00:15.3]}
49. Kh2 {[%clk 0:00:03]} 49... Nf1+ {[%clk 0:00:15.1]} 50. Kg2 {[%clk
0:00:02.8]} 50... Nxg3 {[%clk 0:00:15.3]} 51. Kxg3 {[%clk 0:00:03.7]} 51... Qd3
{[%clk 0:00:13.6]} 52. g6 {[%clk 0:00:02.8]} 52... Qc3 {[%clk 0:00:13]} 53. Kf4
{[%clk 0:00:01.8]} 53... Qxb4 {[%clk 0:00:13.6]} 0-1

[Event "Late-Titled-Tuesday-Blitz-February-13-2024"]
[Site "Chess.com"]
[Date "2024.02.13"]
[Round "7"]
[White "grzechu96"]
[Black "kikoveiga"]
[Result "0-1"]
[WhiteElo "2749"]
[BlackElo "2538"]
[TimeControl "180+1"]
[EndTime "15:18:48 PST"]
[Termination "kikoveiga won by checkmate"]

1. e4 {[%clk 0:03:00.9]} 1... c5 {[%clk 0:02:48]} 2. Nf3 {[%clk 0:03:01.1]} 2...
e6 {[%clk 0:02:47.9]} 3. g3 {[%clk 0:02:59.3]} 3... Nc6 {[%clk 0:02:48.3]} 4.
Bg2 {[%clk 0:02:59.2]} 4... Nf6 {[%clk 0:02:48.6]} 5. Qe2 {[%clk 0:02:58.4]}
5... e5 {[%clk 0:02:44.7]} 6. O-O {[%clk 0:02:57.7]} 6... Be7 {[%clk 0:02:44.2]}
7. c3 {[%clk 0:02:55.3]} 7... O-O {[%clk 0:02:43]} 8. Na3 {[%clk 0:02:55.4]}
8... d6 {[%clk 0:02:42.1]} 9. d3 {[%clk 0:02:54.8]} 9... h6 {[%clk 0:02:38.5]}
10. Nc4 {[%clk 0:02:53.4]} 10... Be6 {[%clk 0:02:15.8]} 11. Ne3 {[%clk
0:02:52.9]} 11... d5 {[%clk 0:02:14.2]} 12. Nh4 {[%clk 0:02:52.2]} 12... Re8
{[%clk 0:02:06.7]} 13. Nhf5 {[%clk 0:02:11.5]} 13... Bf8 {[%clk 0:02:06.2]} 14.
exd5 {[%clk 0:01:55.6]} 14... Nxd5 {[%clk 0:02:04.6]} 15. Nxd5 {[%clk
0:01:53.8]} 15... Bxd5 {[%clk 0:02:05.5]} 16. Be4 {[%clk 0:01:53.6]} 16... Be6
{[%clk 0:01:56.2]} 17. Be3 {[%clk 0:01:45.4]} 17... Qd7 {[%clk 0:01:49.9]} 18.
Qh5 {[%clk 0:01:35.5]} 18... Ne7 {[%clk 0:01:26.2]} 19. Nxe7+ {[%clk 0:01:24.4]}
19... Qxe7 {[%clk 0:01:27.1]} 20. Qxe5 {[%clk 0:01:23.5]} 20... Rad8 {[%clk
0:01:24.9]} 21. Rfe1 {[%clk 0:01:18.8]} 21... Qd7 {[%clk 0:01:23.5]} 22. Qh5
{[%clk 0:01:03.1]} 22... Bg4 {[%clk 0:01:21.8]} 23. Qd5 {[%clk 0:00:16.4]} 23...
Qxd5 {[%clk 0:01:17]} 24. Bxd5 {[%clk 0:00:17.3]} 24... Rxd5 {[%clk 0:01:17.4]}
25. d4 {[%clk 0:00:17.8]} 25... cxd4 {[%clk 0:01:15.6]} 26. Bxd4 {[%clk
0:00:18.7]} 26... Rxe1+ {[%clk 0:01:12.5]} 27. Rxe1 {[%clk 0:00:19.6]} 27... b6
{[%clk 0:01:08.4]} 28. Re8 {[%clk 0:00:18.7]} 28... f6 {[%clk 0:01:05.1]} 29.
Kg2 {[%clk 0:00:16.4]} 29... Kf7 {[%clk 0:01:04.3]} 30. Ra8 {[%clk 0:00:16]}
30... Rd7 {[%clk 0:01:04.2]} 31. f3 {[%clk 0:00:16.2]} 31... Be6 {[%clk
0:01:03.7]} 32. a4 {[%clk 0:00:13.2]} 32... Bc5 {[%clk 0:01:01.7]} 33. Bxc5
{[%clk 0:00:11.6]} 33... bxc5 {[%clk 0:01:02.6]} 34. b4 {[%clk 0:00:09.3]} 34...
Rd2+ {[%clk 0:01:01.4]} 35. Kg1 {[%clk 0:00:09.3]} 35... cxb4 {[%clk 0:00:51]}
36. cxb4 {[%clk 0:00:08.9]} 36... Rd7 {[%clk 0:00:50.4]} 37. Kf2 {[%clk
0:00:07.7]} 37... Bc4 {[%clk 0:00:50.4]} 38. Ke3 {[%clk 0:00:07.6]} 38... a6
{[%clk 0:00:50.6]} 39. Rc8 {[%clk 0:00:07]} 39... Bb3 {[%clk 0:00:46.2]} 40. b5
{[%clk 0:00:04]} 40... Bxa4 {[%clk 0:00:42.3]} 41. bxa6 {[%clk 0:00:03.9]} 41...
Ra7 {[%clk 0:00:40.9]} 42. Rb8 {[%clk 0:00:01.8]} 42... Rxa6 {[%clk 0:00:40.9]}
43. Rb2 {[%clk 0:00:02.6]} 43... Bd7 {[%clk 0:00:40.3]} 44. Kf2 {[%clk 0:00:03]}
44... Be6 {[%clk 0:00:40.4]} 45. Rb7+ {[%clk 0:00:03]} 45... Kg6 {[%clk
0:00:40.1]} 46. g4 {[%clk 0:00:03.9]} 46... Bf7 {[%clk 0:00:39.6]} 47. Rc7
{[%clk 0:00:02.9]} 47... Bd5 {[%clk 0:00:34.3]} 48. Rc3 {[%clk 0:00:02.5]} 48...
h5 {[%clk 0:00:33]} 49. gxh5+ {[%clk 0:00:02]} 49... Kxh5 {[%clk 0:00:32.7]} 50.
Kg3 {[%clk 0:00:02.7]} 50... g5 {[%clk 0:00:32.2]} 51. h3 {[%clk 0:00:02.2]}
51... Ra1 {[%clk 0:00:31.4]} 52. f4 {[%clk 0:00:01.3]} 52... Rg1+ {[%clk
0:00:29.7]} 53. Kf2 {[%clk 0:00:01.9]} 53... Rg2+ {[%clk 0:00:29.9]} 54. Kf1
{[%clk 0:00:02.6]} 54... gxf4 {[%clk 0:00:29.3]} 55. Rc5 {[%clk 0:00:03]} 55...
Rg5 {[%clk 0:00:29.9]} 56. Rc7 {[%clk 0:00:03.2]} 56... Kh4 {[%clk 0:00:29]} 57.
Kf2 {[%clk 0:00:03.7]} 57... Kxh3 {[%clk 0:00:28.9]} 58. Rh7+ {[%clk 0:00:04.5]}
58... Kg4 {[%clk 0:00:29.5]} 59. Rh6 {[%clk 0:00:05.1]} 59... Kf5 {[%clk
0:00:29.4]} 60. Rh2 {[%clk 0:00:05.3]} 60... Rg2+ {[%clk 0:00:25.5]} 61. Rxg2
{[%clk 0:00:05.2]} 61... Bxg2 {[%clk 0:00:26.4]} 62. Kxg2 {[%clk 0:00:06.1]}
62... Ke4 {[%clk 0:00:24.8]} 63. Kf2 {[%clk 0:00:06.6]} 63... f3 {[%clk
0:00:25.2]} 64. Kf1 {[%clk 0:00:07.2]} 64... Ke3 {[%clk 0:00:25.2]} 65. Ke1
{[%clk 0:00:07.3]} 65... f2+ {[%clk 0:00:25.9]} 66. Kf1 {[%clk 0:00:07.9]} 66...
f5 {[%clk 0:00:26.7]} 67. Kg2 {[%clk 0:00:08.6]} 67... Ke2 {[%clk 0:00:27.4]}
68. Kg3 {[%clk 0:00:09.2]} 68... f1=Q {[%clk 0:00:28]} 69. Kh4 {[%clk
0:00:10.1]} 69... Qg2 {[%clk 0:00:27.9]} 70. Kh5 {[%clk 0:00:10.2]} 70... Kf3
{[%clk 0:00:28]} 71. Kh6 {[%clk 0:00:11.1]} 71... Kf4 {[%clk 0:00:28.5]} 72. Kh7
{[%clk 0:00:12]} 72... Ke5 {[%clk 0:00:28.4]} 73. Kh6 {[%clk 0:00:12.9]} 73...
Kf6 {[%clk 0:00:28.2]} 74. Kh5 {[%clk 0:00:13.8]} 74... Qh3# {[%clk 0:00:28.3]}
0-1

[Event "Late-Titled-Tuesday-Blitz-February-13-2024"]
[Site "Chess.com"]
[Date "2024.02.13"]
[Round "7"]
[White "nihalsarin"]
[Black "Jarrahi2452"]
[Result "1-0"]
[WhiteElo "3189"]
[BlackElo "2820"]
[TimeControl "180+1"]
[EndTime "15:18:55 PST"]
[Termination "nihalsarin won by resignation"]

1. e4 {[%clk 0:03:00.2]} 1... e5 {[%clk 0:02:58.6]} 2. Nf3 {[%clk 0:03:00.8]}
2... Nc6 {[%clk 0:02:58.3]} 3. Bb5 {[%clk 0:03:01.6]} 3... Nge7 {[%clk
0:02:54.1]} 4. Nc3 {[%clk 0:03:01.2]} 4... Ng6 {[%clk 0:02:52.8]} 5. Bc4 {[%clk
0:03:01.7]} 5... Bc5 {[%clk 0:02:50.6]} 6. d3 {[%clk 0:03:01.5]} 6... h6 {[%clk
0:02:49.4]} 7. h4 {[%clk 0:03:01.4]} 7... O-O {[%clk 0:02:49.4]} 8. h5 {[%clk
0:03:00.7]} 8... Nge7 {[%clk 0:02:49.4]} 9. g4 {[%clk 0:03:00.6]} 9... Nd4
{[%clk 0:02:40.3]} 10. Rg1 {[%clk 0:02:53.2]} 10... c6 {[%clk 0:02:37.7]} 11. g5
{[%clk 0:02:51.4]} 11... d5 {[%clk 0:02:36.1]} 12. Bb3 {[%clk 0:02:37.7]} 12...
hxg5 {[%clk 0:02:31.2]} 13. Bxg5 {[%clk 0:02:36.7]} 13... f6 {[%clk 0:02:22.9]}
14. Bd2 {[%clk 0:02:34.5]} 14... Kh7 {[%clk 0:02:19.3]} 15. Nh4 {[%clk
0:02:31.9]} 15... Qd7 {[%clk 0:01:59]} 16. Ng6 {[%clk 0:02:26.5]} 16... Re8
{[%clk 0:01:54]} 17. Rg3 {[%clk 0:02:25.2]} 17... Nxb3 {[%clk 0:01:51.2]} 18.
axb3 {[%clk 0:02:24]} 18... Nxg6 {[%clk 0:01:38.6]} 19. hxg6+ {[%clk 0:02:22.9]}
19... Kg8 {[%clk 0:01:38.4]} 20. Qh5 {[%clk 0:02:23.7]} 20... Qe6 {[%clk
0:01:30.6]} 21. exd5 {[%clk 0:01:41]} 21... cxd5 {[%clk 0:01:30.2]} 22. Qh7+
{[%clk 0:01:40.4]} 22... Kf8 {[%clk 0:01:29.5]} 23. Bh6 {[%clk 0:01:41]} 23...
Qg8 {[%clk 0:01:21.6]} 24. Nxd5 {[%clk 0:01:41.5]} 24... Be7 {[%clk 0:01:04.5]}
25. Rf3 {[%clk 0:01:09.7]} 25... Qxh7 {[%clk 0:01:02.4]} 26. gxh7 {[%clk
0:01:01.3]} 26... Kf7 {[%clk 0:01:02.6]} 27. Nc7 {[%clk 0:00:57]} 27... Bd7
{[%clk 0:00:59.9]} 28. Nxa8 {[%clk 0:00:51.7]} 28... gxh6 {[%clk 0:00:50.8]} 29.
Rxa7 {[%clk 0:00:51.9]} 29... Bc6 {[%clk 0:00:48.4]} 30. Rh3 {[%clk 0:00:48.5]}
30... Kg7 {[%clk 0:00:48.3]} 31. Nc7 {[%clk 0:00:48.1]} 31... Rh8 {[%clk
0:00:44.1]} 32. Nb5 {[%clk 0:00:46.4]} 32... Bc5 {[%clk 0:00:40.3]} 33. c4
{[%clk 0:00:32.7]} 33... Bxa7 {[%clk 0:00:39.1]} 34. Nxa7 {[%clk 0:00:33.6]}
34... Kxh7 {[%clk 0:00:38.2]} 35. Nxc6 {[%clk 0:00:30.7]} 35... bxc6 {[%clk
0:00:38.4]} 36. Kd2 {[%clk 0:00:31.6]} 36... Kg6 {[%clk 0:00:36.6]} 37. b4
{[%clk 0:00:31.3]} 37... Kg5 {[%clk 0:00:36.2]} 38. Ke3 {[%clk 0:00:26.6]} 38...
h5 {[%clk 0:00:34.6]} 39. d4 {[%clk 0:00:27.1]} 39... h4 {[%clk 0:00:32.3]} 40.
dxe5 {[%clk 0:00:26.9]} 40... fxe5 {[%clk 0:00:32.8]} 41. Ke4 {[%clk 0:00:27.7]}
41... Kg4 {[%clk 0:00:31.1]} 42. Rh1 {[%clk 0:00:28.2]} 42... Re8 {[%clk
0:00:30.6]} 43. b5 {[%clk 0:00:27.6]} 43... cxb5 {[%clk 0:00:29.1]} 44. c5
{[%clk 0:00:25.1]} 44... h3 {[%clk 0:00:27.8]} 45. c6 {[%clk 0:00:25.6]} 45...
Rc8 {[%clk 0:00:23.9]} 46. Kd5 {[%clk 0:00:25.9]} 46... e4 {[%clk 0:00:19.4]}
47. b4 {[%clk 0:00:25.6]} 47... Kf3 {[%clk 0:00:18.4]} 48. Rxh3+ {[%clk
0:00:25.1]} 48... Kxf2 {[%clk 0:00:18.4]} 49. Kd6 {[%clk 0:00:19.9]} 49... e3
{[%clk 0:00:18.1]} 50. Kd7 {[%clk 0:00:20.6]} 50... Rf8 {[%clk 0:00:16.6]} 51.
c7 {[%clk 0:00:20.5]} 51... e2 {[%clk 0:00:15.3]} 52. Rh2+ {[%clk 0:00:16.8]}
52... Ke3 {[%clk 0:00:12.9]} 53. Rh1 {[%clk 0:00:16.9]} 53... Kd2 {[%clk
0:00:09.9]} 54. c8=Q {[%clk 0:00:15.8]} 54... Rxc8 {[%clk 0:00:10.1]} 55. Kxc8
{[%clk 0:00:16.7]} 55... e1=Q {[%clk 0:00:10.7]} 56. Rxe1 {[%clk 0:00:17.3]}
56... Kxe1 {[%clk 0:00:11.6]} 57. Kd7 {[%clk 0:00:18]} 57... Kd2 {[%clk
0:00:06.1]} 58. Kc6 {[%clk 0:00:18.9]} 58... Kc3 {[%clk 0:00:06.7]} 59. Kxb5
{[%clk 0:00:19.8]} 1-0

[Event "Late-Titled-Tuesday-Blitz-February-13-2024"]
[Site "Chess.com"]
[Date "2024.02.13"]
[Round "7"]
[White "azikom"]
[Black "Kotlyar_K"]
[Result "0-1"]
[WhiteElo "2686"]
[BlackElo "2528"]
[TimeControl "180+1"]
[EndTime "15:18:56 PST"]
[Termination "Kotlyar_K won by checkmate"]

1. d4 {[%clk 0:03:00.5]} 1... Nf6 {[%clk 0:02:59.3]} 2. c4 {[%clk 0:03:00.3]}
2... e6 {[%clk 0:02:59.7]} 3. Nc3 {[%clk 0:03:00.7]} 3... Bb4 {[%clk 0:02:59.1]}
4. e3 {[%clk 0:03:00.7]} 4... O-O {[%clk 0:02:58]} 5. Ne2 {[%clk 0:03:01.2]}
5... c6 {[%clk 0:02:25.4]} 6. a3 {[%clk 0:03:00.8]} 6... Ba5 {[%clk 0:02:23]} 7.
b4 {[%clk 0:03:00.4]} 7... Bc7 {[%clk 0:02:22.9]} 8. Ng3 {[%clk 0:02:59.4]} 8...
d5 {[%clk 0:02:21.2]} 9. Bb2 {[%clk 0:02:59.9]} 9... Nbd7 {[%clk 0:02:19.6]} 10.
Rc1 {[%clk 0:03:00.2]} 10... Re8 {[%clk 0:02:03.8]} 11. Be2 {[%clk 0:02:56.6]}
11... dxc4 {[%clk 0:01:53.5]} 12. Bxc4 {[%clk 0:02:55.8]} 12... Nb6 {[%clk
0:01:54.4]} 13. Bb3 {[%clk 0:02:52.8]} 13... a5 {[%clk 0:01:51.4]} 14. b5 {[%clk
0:02:49.7]} 14... Bd7 {[%clk 0:01:51]} 15. bxc6 {[%clk 0:02:47.7]} 15... Bxc6
{[%clk 0:01:51.9]} 16. O-O {[%clk 0:02:46.9]} 16... Rc8 {[%clk 0:01:41.4]} 17.
a4 {[%clk 0:02:37.5]} 17... Nbd5 {[%clk 0:01:14.3]} 18. Nb5 {[%clk 0:02:22.7]}
18... Bb8 {[%clk 0:01:08.8]} 19. Qe2 {[%clk 0:02:20.2]} 19... h6 {[%clk
0:01:02.7]} 20. Rfd1 {[%clk 0:02:19.3]} 20... Qd7 {[%clk 0:00:53.9]} 21. Nf1
{[%clk 0:02:15.2]} 21... Ne7 {[%clk 0:00:51.7]} 22. h3 {[%clk 0:02:07.1]} 22...
Nf5 {[%clk 0:00:50.3]} 23. Ba3 {[%clk 0:01:48.4]} 23... Nh4 {[%clk 0:00:37.9]}
24. f3 {[%clk 0:01:47.9]} 24... Nf5 {[%clk 0:00:29.3]} 25. e4 {[%clk 0:01:34]}
25... Ng3 {[%clk 0:00:23.4]} 26. Nxg3 {[%clk 0:01:32]} 26... Bxg3 {[%clk
0:00:24.3]} 27. Nc3 {[%clk 0:01:25.4]} 27... Bf4 {[%clk 0:00:21.6]} 28. Rc2
{[%clk 0:01:25]} 28... Nh5 {[%clk 0:00:20.9]} 29. Bc5 {[%clk 0:01:12.7]} 29...
Qd8 {[%clk 0:00:19.2]} 30. Qf2 {[%clk 0:01:04.2]} 30... Qg5 {[%clk 0:00:16.1]}
31. Rd3 {[%clk 0:00:42.8]} 31... Bg3 {[%clk 0:00:15.2]} 32. Qf1 {[%clk
0:00:21.8]} 32... Nf4 {[%clk 0:00:15.5]} 33. Rdd2 {[%clk 0:00:21.7]} 33... Bh4
{[%clk 0:00:07.3]} 34. Kh1 {[%clk 0:00:18.8]} 34... Nh5 {[%clk 0:00:07.5]} 35.
Ne2 {[%clk 0:00:18.3]} 35... Bg3 {[%clk 0:00:07.1]} 36. Ba3 {[%clk 0:00:11.1]}
36... Bc7 {[%clk 0:00:06.8]} 37. Bc1 {[%clk 0:00:10.4]} 37... Qg6 {[%clk
0:00:06.4]} 38. Qf2 {[%clk 0:00:09.7]} 38... Kh7 {[%clk 0:00:05.1]} 39. Qe3
{[%clk 0:00:08.7]} 39... Ng3+ {[%clk 0:00:05.2]} 40. Nxg3 {[%clk 0:00:08.6]}
40... Qxg3 {[%clk 0:00:06.1]} 41. Qg1 {[%clk 0:00:06.7]} 41... f5 {[%clk
0:00:06.6]} 42. d5 {[%clk 0:00:06.5]} 42... exd5 {[%clk 0:00:05]} 43. Bxd5
{[%clk 0:00:05]} 43... Bxd5 {[%clk 0:00:04.3]} 44. Rxd5 {[%clk 0:00:04.8]} 44...
fxe4 {[%clk 0:00:04.6]} 45. f4 {[%clk 0:00:04.3]} 45... e3 {[%clk 0:00:04.5]}
46. Re2 {[%clk 0:00:03.7]} 46... Bxf4 {[%clk 0:00:04.4]} 47. Bb2 {[%clk
0:00:02.4]} 47... Rcd8 {[%clk 0:00:04.3]} 48. Rxd8 {[%clk 0:00:02]} 48... Rxd8
{[%clk 0:00:05.2]} 49. Bc3 {[%clk 0:00:01.4]} 49... Rc8 {[%clk 0:00:04.7]} 50.
Be1 {[%clk 0:00:01.3]} 50... Qg5 {[%clk 0:00:04.2]} 51. Qf1 {[%clk 0:00:01.6]}
51... Rf8 {[%clk 0:00:04.5]} 52. Qf3 {[%clk 0:00:01.6]} 52... Bd6 {[%clk
0:00:04.5]} 53. Qe4+ {[%clk 0:00:01.7]} 53... Kh8 {[%clk 0:00:04.3]} 54. Rxe3
{[%clk 0:00:01.1]} 54... Rf1# {[%clk 0:00:04.4]} 0-1

[Event "Late-Titled-Tuesday-Blitz-February-13-2024"]
[Site "Chess.com"]
[Date "2024.02.13"]
[Round "7"]
[White "Lucas_Tomiello"]
[Black "JackRodgers"]
[Result "0-1"]
[WhiteElo "2669"]
[BlackElo "2527"]
[TimeControl "180+1"]
[EndTime "15:18:56 PST"]
[Termination "JackRodgers won by resignation"]

1. e4 {[%clk 0:03:00.9]} 1... c5 {[%clk 0:03:00]} 2. Nf3 {[%clk 0:03:01.1]} 2...
g6 {[%clk 0:03:00]} 3. Nc3 {[%clk 0:03:00.7]} 3... Bg7 {[%clk 0:03:00.3]} 4. d4
{[%clk 0:03:01.1]} 4... cxd4 {[%clk 0:03:01.2]} 5. Nxd4 {[%clk 0:03:02]} 5...
Nc6 {[%clk 0:03:01.8]} 6. Be3 {[%clk 0:03:02.4]} 6... Nf6 {[%clk 0:03:02.2]} 7.
Be2 {[%clk 0:03:02.4]} 7... O-O {[%clk 0:02:59.4]} 8. Nb3 {[%clk 0:02:59.6]}
8... d6 {[%clk 0:02:59.2]} 9. g4 {[%clk 0:02:55.6]} 9... Be6 {[%clk 0:02:53.6]}
10. g5 {[%clk 0:02:55]} 10... Nd7 {[%clk 0:02:53.7]} 11. h4 {[%clk 0:02:55]}
11... Nde5 {[%clk 0:02:50.1]} 12. f4 {[%clk 0:02:52.1]} 12... Nc4 {[%clk
0:02:49.1]} 13. Bxc4 {[%clk 0:02:51.9]} 13... Bxc4 {[%clk 0:02:50]} 14. Qd2
{[%clk 0:02:33.6]} 14... a5 {[%clk 0:02:48]} 15. Nd4 {[%clk 0:02:32.8]} 15... a4
{[%clk 0:02:18.2]} 16. a3 {[%clk 0:02:32.4]} 16... Qa5 {[%clk 0:02:14.3]} 17.
O-O-O {[%clk 0:02:29.4]} 17... Rfc8 {[%clk 0:02:11.3]} 18. Kb1 {[%clk
0:02:27.7]} 18... b5 {[%clk 0:02:08.3]} 19. Nd5 {[%clk 0:02:10.9]} 19... Qxd2
{[%clk 0:01:49.8]} 20. Rxd2 {[%clk 0:02:11.8]} 20... Bxd5 {[%clk 0:01:50.4]} 21.
exd5 {[%clk 0:02:09.2]} 21... Nxd4 {[%clk 0:01:50.7]} 22. Bxd4 {[%clk
0:02:10.1]} 22... Rc4 {[%clk 0:01:39]} 23. Rhd1 {[%clk 0:02:04.4]} 23... Rac8
{[%clk 0:01:35.6]} 24. c3 {[%clk 0:02:02.9]} 24... h5 {[%clk 0:01:21.6]} 25.
Bxg7 {[%clk 0:01:45.2]} 25... Kxg7 {[%clk 0:01:21]} 26. Rd4 {[%clk 0:01:45.8]}
26... f6 {[%clk 0:01:04.8]} 27. Kc2 {[%clk 0:01:42]} 27... Kf7 {[%clk 0:01:02]}
28. Rxc4 {[%clk 0:01:38.3]} 28... Rxc4 {[%clk 0:00:57.6]} 29. Rd4 {[%clk
0:01:29.9]} 29... Rc5 {[%clk 0:00:57.7]} 30. Kd3 {[%clk 0:01:27.1]} 30... f5
{[%clk 0:00:37.8]} 31. c4 {[%clk 0:01:19.2]} 31... e5 {[%clk 0:00:31.2]} 32.
dxe6+ {[%clk 0:01:12.7]} 32... Kxe6 {[%clk 0:00:32.1]} 33. cxb5 {[%clk
0:01:08.7]} 33... Rxb5 {[%clk 0:00:33]} 34. Rxa4 {[%clk 0:01:06.1]} 34... Rxb2
{[%clk 0:00:32.9]} 35. Ra7 {[%clk 0:01:02.8]} 35... Rh2 {[%clk 0:00:23.2]} 36.
Rg7 {[%clk 0:01:00.7]} 36... Rxh4 {[%clk 0:00:22.6]} 37. Rxg6+ {[%clk
0:00:59.1]} 37... Kd5 {[%clk 0:00:22.8]} 38. Ke3 {[%clk 0:00:50.9]} 38... Rh3+
{[%clk 0:00:22.7]} 39. Kf2 {[%clk 0:00:51.4]} 39... Rxa3 {[%clk 0:00:22]} 40.
Rf6 {[%clk 0:00:45.5]} 40... Ke4 {[%clk 0:00:21.7]} 41. Rxd6 {[%clk 0:00:42.7]}
41... Kxf4 {[%clk 0:00:21.8]} 42. g6 {[%clk 0:00:42.9]} 42... Ra2+ {[%clk
0:00:21.2]} 43. Kg1 {[%clk 0:00:42.8]} 43... Ra3 {[%clk 0:00:14.3]} 44. Kf2
{[%clk 0:00:39.7]} 44... Ra2+ {[%clk 0:00:14.7]} 45. Kf1 {[%clk 0:00:39.2]}
45... Ra7 {[%clk 0:00:15.3]} 46. Kg2 {[%clk 0:00:20.3]} 46... Rg7 {[%clk
0:00:13.4]} 47. Kh3 {[%clk 0:00:18.2]} 47... Kg5 {[%clk 0:00:13.8]} 48. Rd1
{[%clk 0:00:16.5]} 48... Rxg6 {[%clk 0:00:13.4]} 49. Rg1+ {[%clk 0:00:16.7]}
49... Kf6 {[%clk 0:00:13.1]} 50. Rf1 {[%clk 0:00:17.2]} 50... Rg4 {[%clk
0:00:13.4]} 51. Rf2 {[%clk 0:00:16.9]} 51... Kg5 {[%clk 0:00:13.8]} 52. Re2
{[%clk 0:00:16.2]} 52... h4 {[%clk 0:00:14]} 53. Re8 {[%clk 0:00:16.3]} 53...
Rg3+ {[%clk 0:00:14.5]} 54. Kh2 {[%clk 0:00:16.5]} 54... Ra3 {[%clk 0:00:14.2]}
55. Rg8+ {[%clk 0:00:16.4]} 55... Kf4 {[%clk 0:00:14.8]} 56. Rh8 {[%clk
0:00:17]} 56... h3 {[%clk 0:00:12.7]} 57. Rh4+ {[%clk 0:00:15.7]} 57... Kg5
{[%clk 0:00:13.1]} 58. Rh8 {[%clk 0:00:09.7]} 58... f4 {[%clk 0:00:12.4]} 59.
Rg8+ {[%clk 0:00:10.3]} 59... Kf5 {[%clk 0:00:13]} 60. Rf8+ {[%clk 0:00:10]}
60... Kg4 {[%clk 0:00:13.6]} 61. Rg8+ {[%clk 0:00:10.3]} 61... Kf3 {[%clk
0:00:14.2]} 62. Kxh3 {[%clk 0:00:10.6]} 62... Ra1 {[%clk 0:00:14.8]} 63. Kh4
{[%clk 0:00:10.5]} 63... Rh1+ {[%clk 0:00:14.4]} 64. Kg5 {[%clk 0:00:11.1]}
64... Rg1+ {[%clk 0:00:15.2]} 0-1